{"text_format":"1","workbook":"xlsx","n_sheets":4,"sheets":["Adh","TTB suivi 2022","PREV KEVIN 30€+DEP 2021-22","t-shirt"],"not_rendered":{"charts":0,"images":10,"macros":1,"external_links":0,"defined_names":5,"comments":0,"pivot_tables":0},"unopened":[],"bounds":{"document_bytes":16777216,"sheet_cells":100000,"rows_first":2000,"rows_last":500,"rows_between":2000,"halvings":0,"cell_chars":16384,"cell_head_chars":4096},"cells_cut":0,"cells_raw":0,"read":"whole","date_system":"1900"}

{"sheet":"Adh","index":0,"n_rows":66,"n_cols":62,"rows_kept":66,"cut":false,"hidden":false,"merged":[]}
["id","Nom","Prénom","naiss","tél","mél","cat","créneau","licence","actu",null,null,null,null,null,null,null,null,null,null,null,null,null,null,null,null,null,null,null,null,null,null,null,null,null,null,null,null,null,null,null,null,null,null,null,null,null,null,null,null,null,63,"id","Nom","Prénom","naiss","tél","mél","cat","créneau","licence","actu"]
[1,"ABI","Richard",null,null,null,null,null,null,1,"1vétéran 7",null,null,null,null,null,null,null,null,null,null,null,null,null,null,null,null,null,null,null,null,null,{"$f":"COUNTA(B:B)","v":66},null,null,null,null,null,null,null,null,null,null,null,null,null,null,null,null,null,null,null,1,"ABI","Richard",null,null,null,null,null,null,1]
[3,"ALL","Thomas",null,null,null,null,null,null,1,"1benjamin 1",null,null,null,null,null,null,null,null,null,null,null,null,null,null,null,null,null,null,null,null,null,null,null,null,null,null,null,null,null,null,null,null,null,null,null,null,null,null,null,null,null,3,"ALL","Thomas",null,null,null,null,null,null,1]
[4,"AOU","Anne",null,null,null,null,null,null,1,"1vétéran 4",null,null,null,null,null,null,null,null,null,null,null,null,null,null,null,null,null,null,null,null,null,19,{"$f":"VLOOKUP(AG4,AC2:AD20,2,TRUE)","v":{"$error":"#N/A"}},null,null,null,null,null,null,null,null,null,null,null,null,null,null,null,null,null,null,4,"AOU","Anne",null,null,null,null,null,null,1]
[5,"AOU","Serge",null,null,null,null,null,null,1,"1vétéran 6",null,null,null,null,null,null,null,null,null,null,null,null,null,null,null,null,null,null,null,null,null,null,null,null,null,null,null,null,null,null,null,null,null,null,null,null,null,null,null,null,null,5,"AOU","Serge",null,null,null,null,null,null,1]
[6,"ATT","Leylia",null,null,null,null,null,null,1,"1vétéran 3",null,null,null,null,null,null,null,null,null,null,null,null,null,null,null,null,null,null,null,null,null,null,{"$f":"COUNTA(A:A)+1","v":67},null,null,null,null,null,null,null,null,null,null,null,null,null,null,null,null,null,null,6,"ATT","Leylia",null,null,null,null,null,null,1]
[7,"CAL","Laurent",null,null,null,null,null,null,1,"1vétéran 2",null,null,null,null,null,null,null,null,null,null,null,null,null,null,null,null,null,null,null,null,null,null,66,null,null,null,null,null,null,null,null,null,null,null,null,null,null,null,null,null,null,7,"CAL","Laurent",null,null,null,null,null,null,1]
[8,"CAR","Patrick",null,null,null,null,null,null,1,"1vétéran 3",null,null,null,null,null,null,null,null,null,null,null,null,null,null,null,null,null,null,null,null,null,null,null,null,null,null,null,null,null,null,null,null,null,null,null,null,null,null,null,null,null,8,"CAR","Patrick",null,null,null,null,null,null,1]
[9,"CAS","Jacqueline",null,null,null,null,null,null,1,"1vétéran 7",null,null,null,null,null,null,null,null,null,null,null,null,null,null,null,null,null,null,null,null,null,null,null,null,null,null,null,null,null,null,null,null,null,null,null,null,null,null,null,null,null,9,"CAS","Jacqueline",null,null,null,null,null,null,1]
[10,"CAU","Wylan",null,null,null,null,null,null,1,"1cadet 2",null,null,null,null,null,null,null,null,null,null,null,null,null,null,null,null,null,null,null,null,null,null,null,null,null,null,null,null,null,null,null,null,null,null,null,null,null,null,null,null,null,10,"CAU","Wylan",null,null,null,null,null,null,1]
[11,"CHI","Justine ",null,null,null,null,null,null,1,"1sénior",null,null,null,null,null,null,null,null,null,null,null,null,null,null,null,null,null,null,null,null,null,null,null,null,null,null,null,null,null,null,null,null,null,null,null,null,null,null,null,null,null,11,"CHI","Justine ",null,null,null,null,null,null,1]
[12,"DER","Sébastien",null,null,null,null,null,null,1,"1vétéran 2",null,null,null,null,null,null,null,null,null,null,null,null,null,null,null,null,null,null,null,null,null,null,null,null,null,null,null,null,null,null,null,null,null,null,null,null,null,null,null,null,null,12,"DER","Sébastien",null,null,null,null,null,null,1]
[13,"FAU","Kevin",null,null,null,null,null,null,1,"1vétéran 1",null,null,null,null,null,null,null,null,null,null,null,null,null,null,null,null,null,null,null,null,null,null,null,null,null,null,null,null,null,null,null,null,null,null,null,null,null,null,null,null,null,13,"FAU","Kevin",null,null,null,null,null,null,1]
[15,"GAS","Magali",null,null,null,null,null,null,1,"1vétéran 2",null,null,null,null,null,null,null,null,null,null,null,null,null,null,null,null,null,null,null,null,null,null,null,null,null,null,null,null,null,null,null,null,null,null,null,null,null,null,null,null,null,15,"GAS","Magali",null,null,null,null,null,null,1]
[16,"GIL","Christine",null,null,null,null,null,null,1,"1vétéran 3",null,null,null,null,null,null,null,null,null,null,null,null,null,null,null,null,null,null,null,null,null,null,null,null,null,null,null,null,null,null,null,null,null,null,null,null,null,null,null,null,null,16,"GIL","Christine",null,null,null,null,null,null,1]
[17,"HAB","Axel",null,null,null,null,null,null,1,"1benjamin 2",null,null,null,null,null,null,null,null,null,null,null,null,null,null,null,null,null,null,null,null,null,null,null,null,null,null,null,null,null,null,null,null,null,null,null,null,null,null,null,null,null,17,"HAB","Axel",null,null,null,null,null,null,1]
[18,"HOB","Marie",null,null,null,null,null,null,1,"1poussin 1",null,null,null,null,null,null,null,null,null,null,null,null,null,null,null,null,null,null,null,null,null,null,null,null,null,null,null,null,null,null,null,null,null,null,null,null,null,null,null,null,null,18,"HOB","Marie",null,null,null,null,null,null,1]
[19,"HUC","Olivier",null,null,null,null,null,null,1,"1vétéran 2",null,null,null,null,null,null,null,null,null,null,null,null,null,null,null,null,null,null,null,null,null,null,null,null,null,null,null,null,null,null,null,null,null,null,null,null,null,null,null,null,null,19,"HUC","Olivier",null,null,null,null,null,null,1]
[20,"HUT","Alexandre",null,null,null,null,null,null,1,"1minibad",null,null,null,null,null,null,null,null,null,null,null,null,null,null,null,null,null,null,null,null,null,null,null,null,null,null,null,null,null,null,null,null,null,null,null,null,null,null,null,null,null,20,"HUT","Alexandre",null,null,null,null,null,null,1]
[21,"HUT","Celiane",null,null,null,null,null,null,1,"1poussin 2",null,null,null,null,null,null,null,null,null,null,null,null,null,null,null,null,null,null,null,null,null,null,null,null,null,null,null,null,null,null,null,null,null,null,null,null,null,null,null,null,null,21,"HUT","Celiane",null,null,null,null,null,null,1]
[22,"KOR","Lilou",null,null,null,null,null,null,1,"1minime 2",null,null,null,null,null,null,null,null,null,null,null,null,null,null,null,null,null,null,null,null,null,null,null,null,null,null,null,null,null,null,null,null,null,null,null,null,null,null,null,null,null,22,"KOR","Lilou",null,null,null,null,null,null,1]
[23,"KOR","Marie-Hélène",null,null,null,null,null,null,1,"1vétéran 4",null,null,null,null,null,null,null,null,null,null,null,null,null,null,null,null,null,null,null,null,null,null,null,null,null,null,null,null,null,null,null,null,null,null,null,null,null,null,null,null,null,23,"KOR","Marie-Hélène",null,null,null,null,null,null,1]
[24,"KUL","Julien",null,null,null,null,null,null,1,"1sénior",null,null,null,null,null,null,null,null,null,null,null,null,null,null,null,null,null,null,null,null,null,null,null,null,null,null,null,null,null,null,null,null,null,null,null,null,null,null,null,null,null,24,"KUL","Julien",null,null,null,null,null,null,1]
[25,"LAF","Allan",null,null,null,null,null,null,1,"1sénior",null,null,null,null,null,null,null,null,null,null,null,null,null,null,null,null,null,null,null,null,null,null,null,null,null,null,null,null,null,null,null,null,null,null,null,null,null,null,null,null,null,25,"LAF","Allan",null,null,null,null,null,null,1]
[26,"LE ","Emma",null,null,null,null,null,null,1,"1junior 2",null,null,null,null,null,null,null,null,null,null,null,null,null,null,null,{"$f":"G1","v":"cat"},null,null,null,null,null,null,null,null,null,null,null,null,null,null,null,null,null,null,null,null,null,null,null,null,null,26,"LE ","Emma",null,null,null,null,null,null,1]
[27,"LE ","Tess",null,null,null,null,null,null,1,"1minime 2",null,null,null,null,null,null,null,null,null,null,null,null,null,null,null,"benjamin*",null,null,null,null,null,null,null,null,null,null,null,null,null,null,null,null,null,null,null,null,null,null,null,null,null,27,"LE ","Tess",null,null,null,null,null,null,1]
[28,"LEC","Gaetan",null,null,null,null,null,null,1,"1vétéran 1",null,null,null,null,null,null,null,null,null,null,null,null,null,null,null,null,null,null,null,null,null,null,null,null,null,null,null,null,null,null,null,null,null,null,null,null,null,null,null,null,null,28,"LEC","Gaetan",null,null,null,null,null,null,1]
[29,"LEF","Frédéric",null,null,null,null,null,null,1,"1vétéran 5",null,null,null,null,null,null,null,null,null,null,null,null,null,null,null,null,null,null,null,null,null,null,null,null,null,null,null,null,null,null,null,null,null,null,null,null,null,null,null,null,null,29,"LEF","Frédéric",null,null,null,null,null,null,1]
[30,"LEF","Marie",null,null,null,null,null,null,1,"1sénior",null,null,null,null,null,null,null,null,null,null,null,null,null,null,null,{"$f":"J1","v":"actu"},null,null,null,null,null,null,null,null,null,null,null,null,null,null,null,null,null,null,null,null,null,null,null,null,null,30,"LEF","Marie",null,null,null,null,null,null,1]
[31,"LEG","Valérie",null,null,null,null,null,null,1,"1vétéran 4",null,null,null,null,null,null,null,null,null,null,null,null,null,null,null,1,null,null,null,null,null,null,null,null,null,null,null,null,null,null,null,null,null,null,null,null,null,null,null,null,null,31,"LEG","Valérie",null,null,null,null,null,null,1]
[32,"LEM","Kirsti",null,null,null,null,null,null,1,"1vétéran 2",null,null,null,null,null,null,null,null,null,null,null,null,null,null,null,null,null,null,null,null,null,null,null,null,null,null,null,null,null,null,null,null,null,null,null,null,null,null,null,null,null,32,"LEM","Kirsti",null,null,null,null,null,null,1]
[33,"LER","Emilie",null,null,null,null,null,null,1,"1benjamin 1",null,null,null,null,null,null,null,null,null,null,null,null,null,null,null,null,null,null,null,null,null,null,null,null,null,null,null,null,null,null,null,null,null,null,null,null,null,null,null,null,null,33,"LER","Emilie",null,null,null,null,null,null,1]
[34,"LER","Julien",null,null,null,null,null,null,1,"1vétéran 3",null,null,null,null,null,null,null,null,null,null,null,null,null,null,null,null,null,null,null,null,null,null,null,null,null,null,null,null,null,null,null,null,null,null,null,null,null,null,null,null,null,34,"LER","Julien",null,null,null,null,null,null,1]
[35,"LOS","Vincenzo",null,null,null,null,null,null,1,"1vétéran 4",null,null,null,null,null,null,null,null,null,null,null,null,null,null,null,null,null,null,null,null,null,null,null,null,null,null,null,null,null,null,null,null,null,null,null,null,null,null,null,null,null,35,"LOS","Vincenzo",null,null,null,null,null,null,1]
[36,"LOS","Vivian",null,null,null,null,null,null,1,"1sénior",null,null,null,null,null,null,null,null,null,null,null,null,null,null,null,null,null,null,null,null,null,null,null,null,null,null,null,null,null,null,null,null,null,null,null,null,null,null,null,null,null,36,"LOS","Vivian",null,null,null,null,null,null,1]
[37,"LOU","Céline",null,null,null,null,null,null,1,"1vétéran 1",null,null,null,null,null,null,null,null,null,null,null,null,null,null,null,null,null,null,null,null,null,null,null,null,null,null,null,null,null,null,null,null,null,null,null,null,null,null,null,null,null,37,"LOU","Céline",null,null,null,null,null,null,1]
[38,"LUM","Audrey",null,null,null,null,null,null,1,"1benjamin 1",null,null,null,null,null,null,null,null,null,null,null,null,null,null,null,null,null,null,null,null,null,null,null,null,null,null,null,null,null,null,null,null,null,null,null,null,null,null,null,null,null,38,"LUM","Audrey",null,null,null,null,null,null,1]
[39,"MAL","Jade",null,null,null,null,null,null,1,"1poussin 2",null,null,null,null,null,null,null,null,null,null,null,null,null,null,null,null,null,null,null,null,null,null,null,null,null,null,null,null,null,null,null,null,null,null,null,null,null,null,null,null,null,41,"MAL","Emeline",null,null,null,null,null,null,1]
[40,"MAL","Margaux",null,null,null,null,null,null,1,"1minime 2",null,null,null,null,null,null,null,null,null,null,null,null,null,null,null,null,null,null,null,null,null,null,null,null,null,null,null,null,null,null,null,null,null,null,null,null,null,null,null,null,null,42,"MAL","Filipe",null,null,null,null,null,null,1]
[41,"MAL","Emeline",null,null,null,null,null,null,1,"1vétéran 2",null,null,null,null,null,null,null,null,null,null,null,null,null,null,null,null,null,null,null,null,null,null,null,null,null,null,null,null,null,null,null,null,null,null,null,null,null,null,null,null,null,39,"MAL","Jade",null,null,null,null,null,null,1]
[42,"MAL","Filipe",null,null,null,null,null,null,1,"1vétéran 3",null,null,null,null,null,null,null,null,null,null,null,null,null,null,null,null,null,null,null,null,null,null,null,null,null,null,null,null,null,null,null,null,null,null,null,null,null,null,null,null,null,43,"MAL","Julie",null,null,null,null,null,null,1]
[43,"MAL","Julie",null,null,null,null,null,null,1,"1benjamin 1",null,null,null,null,null,null,null,null,null,null,null,null,null,null,null,null,null,null,null,null,null,null,null,null,null,null,null,null,null,null,null,null,null,null,null,null,null,null,null,null,null,40,"MAL","Margaux",null,null,null,null,null,null,1]
[44,"MAL","Marie",null,null,null,null,null,null,1,"1minime 2",null,null,null,null,null,null,null,null,null,null,null,null,null,null,null,null,null,null,null,null,null,null,null,null,null,null,null,null,null,null,null,null,null,null,null,null,null,null,null,null,null,44,"MAL","Marie",null,null,null,null,null,null,1]
[45,"MAR","Fanny",null,null,null,null,null,null,1,"1sénior",null,null,null,null,null,null,null,null,null,null,null,null,null,null,null,null,null,null,null,null,null,null,null,null,null,null,null,null,null,null,null,null,null,null,null,null,null,null,null,null,null,45,"MAR","Fanny",null,null,null,null,null,null,1]
[46,"MON","Marian",null,null,null,null,null,null,1,"1sénior",null,null,null,null,null,null,null,null,null,null,null,null,null,null,null,null,null,null,null,null,null,null,null,null,null,null,null,null,null,null,null,null,null,null,null,null,null,null,null,null,null,46,"MON","Marian",null,null,null,null,null,null,1]
[47,"MOU","Lydie",null,null,null,null,null,null,1,"1vétéran 2",null,null,null,null,null,null,null,null,null,null,null,null,null,null,null,null,null,null,null,null,null,null,null,null,null,null,null,null,null,null,null,null,null,null,null,null,null,null,null,null,null,47,"MOU","Lydie",null,null,null,null,null,null,1]
[48,"OLI","Fanny",null,null,null,null,null,null,1,"1benjamin 1",null,null,null,null,null,null,null,null,null,null,null,null,null,null,null,null,null,null,null,null,null,null,null,null,null,null,null,null,null,null,null,null,null,null,null,null,null,null,null,null,null,51,"OLI","Ambre",null,null,null,null,null,null,1]
[49,"OLI","Manon",null,null,null,null,null,null,1,"1minime 2",null,null,null,null,null,null,null,null,null,null,null,null,null,null,null,null,null,null,null,null,null,null,null,null,null,null,null,null,null,null,null,null,null,null,null,null,null,null,null,null,null,48,"OLI","Fanny",null,null,null,null,null,null,1]
[50,"OLI","Vincent",null,null,null,null,null,null,1,"1cadet 1",null,null,null,null,null,null,null,null,null,null,null,null,null,null,null,null,null,null,null,null,null,null,null,null,null,null,null,null,null,null,null,null,null,null,null,null,null,null,null,null,null,49,"OLI","Manon",null,null,null,null,null,null,1]
[51,"OLI","Ambre",null,null,null,null,null,null,1,"1minime 2",null,null,null,null,null,null,null,null,null,null,null,null,null,null,null,null,null,null,null,null,null,null,null,null,null,null,null,null,null,null,null,null,null,null,null,null,null,null,null,null,null,50,"OLI","Vincent",null,null,null,null,null,null,1]
[52,"PET","Nicolas",null,null,null,null,null,null,1,"1vétéran 2",null,null,null,null,null,null,null,null,null,null,null,null,null,null,null,null,null,null,null,null,null,null,null,null,null,null,null,null,null,null,null,null,null,null,null,null,null,null,null,null,null,52,"PET","Nicolas",null,null,null,null,null,null,1]
[53,"RAI","Nathan",null,null,null,null,null,null,1,"1poussin 1",null,null,null,null,null,null,null,null,null,null,null,null,null,null,null,null,null,null,null,null,null,null,null,null,null,null,null,null,null,null,null,null,null,null,null,null,null,null,null,null,null,53,"RAI","Nathan",null,null,null,null,null,null,1]
[54,"REB","Tess",null,null,null,null,null,null,1,"1benjamin 1",null,null,null,null,null,null,null,null,null,null,null,null,null,null,null,null,null,null,null,null,null,null,null,null,null,null,null,null,null,null,null,null,null,null,null,null,null,null,null,null,null,54,"REB","Tess",null,null,null,null,null,null,1]
[56,"SAA","Sofija",null,null,null,null,null,null,1,"1vétéran 4",null,null,null,null,null,null,null,null,null,null,null,null,null,null,null,null,null,null,null,null,null,null,null,null,null,null,null,null,null,null,null,null,null,null,null,null,null,null,null,null,null,56,"SAA","Sofija",null,null,null,null,null,null,1]
[57,"SAU","Emma",null,null,null,null,null,null,1,"1cadet 2",null,null,null,null,null,null,null,null,null,null,null,null,null,null,null,null,null,null,null,null,null,null,null,null,null,null,null,null,null,null,null,null,null,null,null,null,null,null,null,null,null,57,"SAU","Emma",null,null,null,null,null,null,1]
[58,"SAU","Sébastien",null,null,null,null,null,null,1,"1vétéran 3",null,null,null,null,null,null,null,null,null,null,null,null,null,null,null,null,null,null,null,null,null,null,null,null,null,null,null,null,null,null,null,null,null,null,null,null,null,null,null,null,null,58,"SAU","Sébastien",null,null,null,null,null,null,1]
[59,"THO","Adrien",null,null,null,null,null,null,1,"1vétéran 1",null,null,null,null,null,null,null,null,null,null,null,null,null,null,null,null,null,null,null,null,null,null,null,null,null,null,null,null,null,null,null,null,null,null,null,null,null,null,null,null,null,59,"THO","Adrien",null,null,null,null,null,null,1]
[60,"THO","Hanaë",null,null,null,null,null,null,1,"1poussin 1",null,null,null,null,null,null,null,null,null,null,null,null,null,null,null,null,null,null,null,null,null,null,null,null,null,null,null,null,null,null,null,null,null,null,null,null,null,null,null,null,null,60,"THO","Hanaë",null,null,null,null,null,null,1]
[61,"TRE","Ljljana",null,null,null,null,null,null,1,"1vétéran 2",null,null,null,null,null,null,null,null,null,null,null,null,null,null,null,null,null,null,null,null,null,null,null,null,null,null,null,null,null,null,null,null,null,null,null,null,null,null,null,null,null,61,"TRE","Ljljana",null,null,null,null,null,null,1]
[62,"TRO","Rafaël",null,null,null,null,null,null,1,"1sénior",null,null,null,null,null,null,null,null,null,null,null,null,null,null,null,null,null,null,null,null,null,null,null,null,null,null,null,null,null,null,null,null,null,null,null,null,null,null,null,null,null,62,"TRO","Rafaël",null,null,null,null,null,null,1]
[63,"WAU","Denise",null,null,null,null,null,null,1,"1vétéran 4",null,null,null,null,null,null,null,null,null,null,null,null,null,null,null,null,null,null,null,null,null,null,null,null,null,null,null,null,null,null,null,null,null,null,null,null,null,null,null,null,null,63,"WAU","Denise",null,null,null,null,null,null,1]
[64,"WAU","Emmanuel",null,null,null,null,null,null,1,"1vétéran 3",null,null,null,null,null,null,null,null,null,null,null,null,null,null,null,null,null,null,null,null,null,null,null,null,null,null,null,null,null,null,null,null,null,null,null,null,null,null,null,null,null,64,"WAU","Emmanuel",null,null,null,null,null,null,1]
[65,"WAU","Lorik",null,null,null,null,null,null,1,"1sénior",null,null,null,null,null,null,null,null,null,null,null,null,null,null,null,null,null,null,null,null,null,null,null,null,null,null,null,null,null,null,null,null,null,null,null,null,null,null,null,null,null,65,"WAU","Lorik",null,null,null,null,null,null,1]
[2,"ABR","Stéphane",null,null,null,null,null,null,0]
[14,"FER","Samia",null,null,null,null,null,null,0]
[55,"RUI","Wael",null,null,null,null,null,null,0,"0vétéran 7"]

{"sheet":"TTB suivi 2022","index":1,"n_rows":0,"n_cols":0,"rows_kept":0,"cut":false,"hidden":false,"merged":[[0,61,0,68],[0,69,0,78],[0,79,0,86],[0,87,0,95],[0,96,0,104],[0,19,0,26],[0,27,0,34],[0,35,0,43],[0,44,0,52],[0,53,0,60],[101,96,101,104],[105,8,105,10],[101,19,101,26],[101,27,101,34],[101,35,101,43],[101,44,101,52],[101,53,101,60],[101,61,101,68],[100,14,100,16],[100,17,100,18],[101,69,101,78],[101,79,101,86],[101,87,101,95]]}

{"sheet":"PREV KEVIN 30€+DEP 2021-22","index":2,"n_rows":100,"n_cols":27,"rows_kept":100,"cut":false,"hidden":false,"merged":[[148,0,159,0],[148,8,159,8],[148,15,159,15],[101,0,147,0],[101,8,147,8],[101,11,102,11],[101,12,102,12],[140,7,141,7],[135,7,137,7],[118,14,123,14],[101,14,102,14],[101,15,147,15],[110,11,112,11],[110,12,112,12],[110,14,112,14],[118,7,123,7],[160,0,170,0],[160,8,165,8],[160,15,169,15],[169,8,170,8],[170,15,181,15],[171,0,175,0],[171,8,172,8],[182,0,182,6],[182,10,182,14],[187,0,187,15],[188,0,199,0],[188,1,199,1],[188,8,199,8],[188,10,199,10],[188,11,199,11],[188,15,199,15],[135,14,137,14],[0,0,0,15],[1,0,1,8],[1,10,1,15],[3,8,17,8],[4,10,5,10],[17,15,81,15],[18,8,100,8],[96,15,100,15],[4,15,5,15],[85,15,92,15],[85,10,92,10],[138,7,139,7],[138,14,139,14],[129,7,134,7],[129,14,134,14],[101,10,147,10],[101,7,102,7],[103,7,109,7],[110,7,112,7],[113,7,114,7],[124,14,128,14],[103,11,109,11],[103,14,109,14],[124,7,128,7],[115,7,117,7],[113,14,114,14],[115,14,117,14]]}
["BUDGET COLO'BAD 2020_21"]
["RECETTES",null,null,null,null,null,null,null,null,null,"DEPENSES"]
[null,null,null,null,null,null,null,null,null,null,null,null,null,null,null,null,null,null,null,null,null,null,null,null,null,"ICD",0]
[null,null,null,null,null,null,null,null,null,null,null,null,null,null,null,null,null,null,null,null,null,null,null,null,null,"ICD SS TSHIRT",25]
[null,null,null,null,null,null,null,null,null,null,null,null,null,null,null,null,null,null,null,null,null,null,null,null,null,"BACK UP",40]
[]
[]
[]
[]
[]
[]
[]
[]
[]
[]
[]
[]
[]
[]
[]
[]
[]
[]
[]
[]
[]
[]
[]
[]
[]
[]
[]
[]
[]
[]
[]
[]
[]
[]
[]
[]
[]
[]
[]
[]
[]
[]
[]
[]
[]
[]
[]
[]
[]
[]
[]
[]
[]
[]
[]
[]
[]
[]
[]
[]
[]
[]
[]
[]
[]
[]
[]
[]
[]
[]
[]
[]
[]
[]
[]
[]
[]
[]
[]
[]
[]
[]
[]
[]
[]
[]
[]
[]
[]
[]
[]
[null,null,null,null,null,null,null,null,null,null,null,null,null,null,null,null,"AU REEL"]
[null,null,null,null,null,null,null,null,null,null,null,null,null,null,null,null,0]
[]
[null,null,null,null,null,null,null,null,null,null,null,null,null,null,null,null,{"$f":"+P217","v":0}]

{"sheet":"t-shirt","index":3,"n_rows":18,"n_cols":17,"rows_kept":18,"cut":false,"hidden":false,"merged":[[0,1,0,16],[6,11,17,11],[4,1,4,6],[4,8,4,11],[6,16,17,16],[4,13,4,16],[6,1,17,1],[6,2,11,2],[6,6,17,6],[12,2,17,2]]}
[null,"RESTE À VENDRE  T-SHIRTS ÉDITIONS PRÉCÉDENTES 300921"]
[]
[]
[]
[null,"STOCK À DATE ",null,null,null,null,null,null,"Réservé ",null,null,null,null,"RESTE"]
[null,null,"Modèle","Taille","Quantité","Valeur","Total "]
[null,15,"Ho","XXL",2,{"$f":"+E7*$B$7","v":30},{"$f":"SUM(F7:F18)","v":360},null,"XXL",null,{"$f":"+J7*$B$7","v":0},{"$f":"SUM(K7:K18)","v":210},null,"XXL",{"$f":"+E7-J7","v":2},{"$f":"+O7*$B$7","v":30},{"$f":"SUM(P7:P18)","v":150}]
[null,null,null,"XL",1,15,null,null,"XL => Adrien",1,15,null,null,"XL",{"$f":"+E8-J8","v":0},0]
[null,null,null,"L",8,120,null,null,"L => Julien, Patrick",2,30,null,null,"L",{"$f":"+E9-J9","v":6},90]
[null,null,null,"M ",1,15,null,null,"M => Kevin",1,15,null,null,"M",{"$f":"+E10-J10","v":0},0]
[null,null,null,"S",1,15,null,null,"S => Nathan",1,15,null,null,"S",{"$f":"+E11-J11","v":0},0]
[null,null,null,"XS",0,0,null,null,"XS",null,0,null,null,"XS",0,0]
[null,null,"Fe","XXXL",1,15,null,null,"XXXL => Valérie",1,15,null,null,"XXXL",{"$f":"+E13-J13","v":0},0]
[null,null,null,"XL",0,0,null,null,"XL",null,0,null,null,"XL",0,0]
[null,null,null,"L",2,30,null,null,"L => Leylia, Anne",2,30,null,null,"L",0,0]
[null,null,null,"M",1,15,null,null,"M => Manon",1,15,null,null,"M",0,0]
[null,null,null,"S",1,15,null,null,"S => Ambre",1,15,null,null,"S",0,0]
[null,null,null,"XS ",6,90,null,null,"XS => Margaux, Fanny, Nathan, Hanaë",4,60,null,null,"XS ",2,30]